[Event "26th OIBM 2023"]
[Site "Gmund am Tegernsee"]
[Date "2023.10.29"]
[Round "2.35"]
[White "Dobrosmyslov, Artem"]
[Black "Beisteiner, Joachim"]
[Result "1/2-1/2"]
[ECO "D31"]
[WhiteElo "2316"]
[BlackElo "2115"]
[Annotator "ChessBase"]
[PlyCount "92"]
[EventDate "2023.10.04"]
[EventType "swiss"]
[EventCountry "GER"]
[SourceTitle "playchess.com"]
[Source "ChessBase"]
[SourceQuality "1"]
[TimeControl "40/5400+30:1800+30"]

1. d4 {[%emt 0:05:17]} d5 {[%emt 0:00:18]} 2. c4 {[%emt 0:00:10]} e6 {[%emt 0:00:16]} 3. Nc3 {[%emt 0:00:09]} Be7 {[%emt 0:00:22]} 4. cxd5 {[%emt 0:00:48]} exd5 {[%emt 0:00:09]} 5. Bf4 {[%emt 0:00:12]} c6 {[%emt 0:00:19]} 6. e3 {[%emt 0:00:54]} Bf5 {[%emt 0:00:31]} 7. g4 {[%emt 0:01:09]} Be6 {[%emt 0:00:28]} 8. Bd3 {[%emt 0:00:58]} Nd7 {[%emt 0:01:18]} 9. h3 {[%emt 0:01:25]} h5 {[%emt 0:08:59]} 10. gxh5 {[%emt 0:20:40]} Ndf6 {[%emt 0:01:05]} 11. Qf3 {[%emt 0:08:25]} Nxh5 {[%emt 0:02:00]} 12. Nge2 {[%emt 0:00:08]} Bd6 {[%emt 0:02:04]} 13. Bxd6 {[%emt 0:02:11]} Qxd6 {[%emt 0:00:08]} 14. O-O-O {[%emt 0:00:35]} Ngf6 {[%emt 0:02:53]} 15. Kb1 {[%emt 0:00:39]} O-O-O {[%emt 0:02:18]} 16. Rc1 {[%emt 0:05:49]} Kb8 {[%emt 0:00:36]} 17. Qg2 {[%emt 0:02:40]} g6 {[%emt 0:03:10]} 18. f3 {[%emt 0:01:08]} Bc8 {[%emt 0:03:21]} 19. Qf2 {[%emt 0:10:38]} Rhe8 {[%emt 0:03:57]} 20. Ka1 {[%emt 0:08:27]} Ka8 {[%emt 0:07:34]} 21. Bb1 {[%emt 0:00:53]} Qc7 {[%emt 0:01:41]} 22. e4 {[%emt 0:07:00]} Nf4 {[%emt 0:06:33]} 23. e5 {[%emt 0:01:53]} Nxe2 {[%emt 0:01:38]} 24. Nxe2 {[%emt 0:00:29]} Nh5 {[%emt 0:04:02]} 25. f4 {[%emt 0:00:29]} Ng7 {[%emt 0:01:57]} 26. Ng3 {[%emt 0:00:39]} Rh8 {[%emt 0:02:14]} 27. f5 {[%emt 0:01:58]} gxf5 {[%emt 0:03:35]} 28. Nxf5 {[%emt 0:00:14]} Nxf5 {[%emt 0:00:10]} 29. Bxf5 {[%emt 0:00:04]} Bxf5 {[%emt 0:00:26]} 30. Qxf5 {[%emt 0:00:04]} Rh4 {[%emt 0:00:43]} 31. Qf2 {[%emt 0:05:09]} Rdh8 {[%emt 0:00:53]} 32. Rcg1 {[%emt 0:01:18]} a6 {[%emt 0:01:20]} 33. Rg8+ {[%emt 0:00:39]} Rxg8 {[%emt 0:05:33]} 34. Qxh4 {[%emt 0:00:05]} c5 {[%emt 0:01:13]} 35. Qf2 {[%emt 0:05:37]} cxd4 {[%emt 0:06:06]} 36. Qxd4 {[%emt 0:00:15]} Re8 {[%emt 0:00:34]} 37. Re1 {[%emt 0:04:39]} Qd7 {[%emt 0:02:15]} 38. Re3 {[%emt 0:03:03]} Qe6 {[%emt 0:02:18]} 39. a3 {[%emt 0:01:39]} f6 {[%emt 0:00:17]} 40. Rd3 {[%emt 0:00:56]} fxe5 {[%emt 0:05:36]} 41. Qxd5 {[%emt 0:30:06]} e4 {[%emt 0:30:12]} 42. Qxe6 {[%emt 0:00:23]} Rxe6 {[%emt 0:00:05]} 43. Re3 {[%emt 0:00:11]} Kb8 {[%emt 0:00:35]} 44. h4 {[%emt 0:01:28]} Kc7 {[%emt 0:00:22]} 45. h5 {[%emt 0:00:00]} Rh6 {[%emt 0:00:00]} 46. Rxe4 {[%emt 0:00:00]} Rxh5 {[%emt 0:21:26]} 1/2-1/2

[Event "26th OIBM 2023"]
[Site "Gmund am Tegernsee"]
[Date "2023.10.29"]
[Round "2.36"]
[White "Engesser, Jonas"]
[Black "Baerwinkel, Tobias"]
[Result "1/2-1/2"]
[ECO "E32"]
[WhiteElo "2100"]
[BlackElo "2315"]
[Annotator "ChessBase"]
[PlyCount "77"]
[EventDate "2023.10.04"]
[EventType "swiss"]
[EventCountry "GER"]
[SourceTitle "playchess.com"]
[Source "ChessBase"]
[SourceQuality "1"]
[TimeControl "40/5400+30:1800+30"]

1. d4 {[%emt 0:00:03]} Nf6 {[%emt 0:00:35]} 2. c4 {[%emt 0:00:05]} e6 {[%emt 0:00:47]} 3. Nc3 {[%emt 0:00:05]} Bb4 {[%emt 0:00:38]} 4. Qc2 {[%emt 0:00:06]} O-O {[%emt 0:00:48]} 5. Nf3 {[%emt 0:00:06]} d5 {[%emt 0:01:03]} 6. cxd5 {[%emt 0:00:05]} exd5 {[%emt 0:01:26]} 7. Bf4 {[%emt 0:00:07]} c6 {[%emt 0:05:59]} 8. e3 {[%emt 0:00:58]} Bd6 {[%emt 0:04:56]} 9. Bxd6 {[%emt 0:12:30]} Qxd6 {[%emt 0:00:19]} 10. Bd3 {[%emt 0:00:23]} Be6 {[%emt 0:05:41]} 11. O-O {[%emt 0:15:40]} Nbd7 {[%emt 0:00:18]} 12. h3 {[%emt 0:08:00]} Rfe8 {[%emt 0:03:26]} 13. Rab1 {[%emt 0:01:29]} a5 {[%emt 0:05:11]} 14. a3 {[%emt 0:08:00]} g6 {[%emt 0:02:49]} 15. Rfc1 {[%emt 0:07:17]} Kg7 {[%emt 0:04:41]} 16. Na4 {[%emt 0:14:49]} Nf8 {[%emt 0:13:57]} 17. b4 {[%emt 0:05:54]} axb4 {[%emt 0:01:03]} 18. axb4 {[%emt 0:03:02]} b5 {[%emt 0:05:57]} 19. Nc5 {[%emt 0:03:58]} Bc8 {[%emt 0:03:38]} 20. Ne5 {[%emt 0:01:56]} Rxe5 {[%emt 0:06:31]} 21. dxe5 {[%emt 0:00:10]} Qxe5 {[%emt 0:00:02]} 22. Qc3 {[%emt 0:06:01]} Qg5 {[%emt 0:00:15]} 23. Kf1 {[%emt 0:00:57]} N8d7 {[%emt 0:02:55]} 24. Nb3 {[%emt 0:05:13]} Ra3 {[%emt 0:06:46]} 25. Ra1 {[%emt 0:00:33]} d4 {[%emt 0:00:03]} 26. exd4 {[%emt 0:02:16]} Nd5 {[%emt 0:00:27]} 27. Qxc6 {[%emt 0:00:48]} Rxb3 {[%emt 0:01:25]} 28. Qxc8 {[%emt 0:02:10]} Rxd3 {[%emt 0:09:17]} 29. Qxd7 {[%emt 0:00:10]} Rxd4 {[%emt 0:00:04]} 30. Qe8 {[%emt 0:01:31]} Nf4 {[%emt 0:05:00]} 31. g3 {[%emt 0:00:57]} Nxh3 {[%emt 0:03:25]} 32. Rc8 {[%emt 0:00:14]} Qd5 {[%emt 0:00:41]} 33. Qf8+ {[%emt 0:00:16]} Kf6 {[%emt 0:00:14]} 34. Qh8+ {[%emt 0:00:38]} Ke6 {[%emt 0:00:31]} 35. Qe8+ {[%emt 0:00:33]} Kf6 {[%emt 0:00:13]} 36. Qh8+ {[%emt 0:00:21]} Ke6 {[%emt 0:00:08]} 37. Qe8+ {[%emt 0:00:45]} Kf6 {[%emt 0:00:04]} 38. Qh8+ {[%emt 0:00:38]} Ke6 {[%emt 0:08:17]} 39. Re1+ {[%emt 0:01:16]} 1/2-1/2

[Event "26th OIBM 2023"]
[Site "Gmund am Tegernsee"]
[Date "2023.10.29"]
[Round "2.37"]
[White "Unuk, Laura"]
[Black "Baeuml, Ulrich"]
[Result "1-0"]
[ECO "B90"]
[WhiteElo "2313"]
[BlackElo "2112"]
[Annotator "ChessBase"]
[PlyCount "59"]
[EventDate "2023.10.04"]
[EventType "swiss"]
[EventCountry "GER"]
[SourceTitle "playchess.com"]
[Source "ChessBase"]
[SourceQuality "1"]
[TimeControl "40/5400+30:1800+30"]

1. e4 {[%emt 0:00:09]} c5 {[%emt 0:00:07]} 2. Nf3 {[%emt 0:00:11]} d6 {[%emt 0:00:06]} 3. d4 {[%emt 0:00:10]} cxd4 {[%emt 0:00:09]} 4. Nxd4 {[%emt 0:00:11]} Nf6 {[%emt 0:00:09]} 5. Nc3 {[%emt 0:00:11]} a6 {[%emt 0:00:13]} 6. f3 {[%emt 0:00:28]} e5 {[%emt 0:00:14]} 7. Nb3 {[%emt 0:00:13]} Be6 {[%emt 0:00:54]} 8. Be3 {[%emt 0:00:19]} Be7 {[%emt 0:00:25]} 9. Qd2 {[%emt 0:00:23]} h5 {[%emt 0:00:22]} 10. O-O-O {[%emt 0:00:32]} Nbd7 {[%emt 0:00:16]} 11. Kb1 {[%emt 0:00:40]} Rc8 {[%emt 0:02:14]} 12. g3 {[%emt 0:01:04]} b5 {[%emt 0:04:35]} 13. Nd5 {[%emt 0:00:47]} Nxd5 {[%emt 0:01:02]} 14. exd5 {[%emt 0:00:17]} Bf5 {[%emt 0:00:10]} 15. Bd3 {[%emt 0:01:06]} Bxd3 {[%emt 0:00:19]} 16. cxd3 {[%emt 0:04:37]} Nb6 {[%emt 0:11:02]} 17. Bxb6 {[%emt 0:03:01]} Qxb6 {[%emt 0:00:48]} 18. d4 {[%emt 0:08:06]} O-O {[%emt 0:01:55]} 19. dxe5 {[%emt 0:04:52]} dxe5 {[%emt 0:00:42]} 20. Na5 {[%emt 0:18:58]} Rfd8 {[%emt 0:08:41]} 21. Qe1 {[%emt 0:05:05]} Bd6 {[%emt 0:10:38]} 22. Nc6 {[%emt 0:00:45]} Re8 {[%emt 0:00:23]} 23. Qe4 {[%emt 0:01:49]} a5 {[%emt 0:19:36]} 24. g4 {[%emt 0:01:58]} hxg4 {[%emt 0:14:53]} 25. fxg4 {[%emt 0:04:18]} a4 {[%emt 0:02:16]} 26. Rhf1 {[%emt 0:06:24]} a3 {[%emt 0:02:38]} 27. g5 {[%emt 0:08:32]} Rc7 {[%emt 0:13:46]} 28. Rf3 {[%emt 0:07:27]} g6 {[%emt 0:04:05]} 29. Rf6 {[%emt 0:05:56]} Rd7 {[%emt 0:01:28]} 30. Rxg6+ {[%emt 0:01:20]} 1-0

[Event "26th OIBM 2023"]
[Site "Gmund am Tegernsee"]
[Date "2023.10.29"]
[Round "2.38"]
[White "Schmidt, Gerhard"]
[Black "Mai, Philipp"]
[Result "1-0"]
[ECO "E08"]
[WhiteElo "2112"]
[BlackElo "2313"]
[Annotator "ChessBase"]
[PlyCount "81"]
[EventDate "2023.10.04"]
[EventType "swiss"]
[EventCountry "GER"]
[SourceTitle "playchess.com"]
[Source "ChessBase"]
[SourceQuality "1"]
[TimeControl "40/5400+30:1800+30"]

1. d4 {[%emt 0:00:06]} e6 {[%emt 0:00:22]} 2. g3 {[%emt 0:03:28]} Nf6 {[%emt 0:02:02]} 3. Bg2 {[%emt 0:00:10]} d5 {[%emt 0:01:06]} 4. Nf3 {[%emt 0:01:13]} Be7 {[%emt 0:00:14]} 5. O-O {[%emt 0:01:10]} O-O {[%emt 0:00:12]} 6. c4 {[%emt 0:01:24]} c6 {[%emt 0:00:23]} 7. Qc2 {[%emt 0:01:09]} Nbd7 {[%emt 0:00:24]} 8. Rd1 {[%emt 0:01:34]} b6 {[%emt 0:02:01]} 9. b3 {[%emt 0:02:15]} Bb7 {[%emt 0:00:38]} 10. Nc3 {[%emt 0:01:55]} Rc8 {[%emt 0:02:16]} 11. e4 {[%emt 0:00:19]} c5 {[%emt 0:03:36]} 12. e5 {[%emt 0:20:42]} Ne8 {[%emt 0:01:09]} 13. Bb2 {[%emt 0:20:26]} dxc4 {[%emt 0:09:18]} 14. d5 {[%emt 0:01:28]} cxb3 {[%emt 0:08:13]} 15. axb3 {[%emt 0:02:02]} Bxd5 {[%emt 0:01:00]} 16. Nxd5 {[%emt 0:02:38]} exd5 {[%emt 0:00:03]} 17. Rxd5 {[%emt 0:00:13]} Nc7 {[%emt 0:01:52]} 18. Rd3 {[%emt 0:08:58]} Ne6 {[%emt 0:10:17]} 19. Qd2 {[%emt 0:02:25]} Rc7 {[%emt 0:14:29]} 20. Rd1 {[%emt 0:01:00]} Qb8 {[%emt 0:03:18]} 21. Nh4 {[%emt 0:11:19]} Bxh4 {[%emt 0:12:03]} 22. gxh4 {[%emt 0:00:07]} c4 {[%emt 0:03:05]} 23. bxc4 {[%emt 0:01:23]} Ndc5 {[%emt 0:01:26]} 24. Rd6 {[%emt 0:03:07]} Nb7 {[%emt 0:04:01]} 25. Ba3 {[%emt 0:06:25]} Nbc5 {[%emt 0:02:19]} 26. Bd5 {[%emt 0:01:35]} Re8 {[%emt 0:01:41]} 27. h5 {[%emt 0:00:20]} h6 {[%emt 0:00:07]} 28. f4 {[%emt 0:02:02]} Rcc8 {[%emt 0:04:11]} 29. Kh1 {[%emt 0:02:48]} Qc7 {[%emt 0:03:16]} 30. Rg1 {[%emt 0:00:10]} Kh8 {[%emt 0:01:01]} 31. Bb2 {[%emt 0:01:14]} Rg8 {[%emt 0:05:10]} 32. f5 {[%emt 0:00:05]} Ng5 {[%emt 0:00:31]} 33. h4 {[%emt 0:00:20]} Nge6 {[%emt 0:02:54]} 34. fxe6 {[%emt 0:01:02]} fxe6 {[%emt 0:00:03]} 35. Bg2 {[%emt 0:00:45]} Qe7 {[%emt 0:00:17]} 36. Qe1 {[%emt 0:00:21]} Na4 {[%emt 0:01:40]} 37. Bd4 {[%emt 0:00:36]} Rxc4 {[%emt 0:00:22]} 38. Bf1 {[%emt 0:00:38]} Rcc8 {[%emt 0:01:52]} 39. Bd3 {[%emt 0:00:25]} Rgf8 {[%emt 0:00:30]} 40. Qg3 {[%emt 0:00:37]} Nc5 {[%emt 0:00:34]} 41. Bxc5 {[%emt 0:03:16]} 1-0

[Event "26th OIBM 2023"]
[Site "Gmund am Tegernsee"]
[Date "2023.10.29"]
[Round "2.39"]
[White "Schuster, Karsten"]
[Black "Renner, Kai"]
[Result "1/2-1/2"]
[ECO "A88"]
[WhiteElo "2309"]
[BlackElo "2103"]
[Annotator "ChessBase"]
[PlyCount "96"]
[EventDate "2023.10.04"]
[EventType "swiss"]
[EventCountry "GER"]
[SourceTitle "playchess.com"]
[Source "ChessBase"]
[SourceQuality "1"]
[TimeControl "40/5400+30:1800+30"]

1. d4 {[%emt 0:00:01]} f5 {[%emt 0:00:10]} 2. g3 {[%emt 0:00:18]} Nf6 {[%emt 0:00:15]} 3. Bg2 {[%emt 0:00:06]} g6 {[%emt 0:00:23]} 4. Nf3 {[%emt 0:00:11]} Bg7 {[%emt 0:00:13]} 5. O-O {[%emt 0:00:07]} O-O {[%emt 0:00:08]} 6. c4 {[%emt 0:00:23]} d6 {[%emt 0:00:16]} 7. Nc3 {[%emt 0:00:26]} c6 {[%emt 0:00:52]} 8. Rb1 {[%emt 0:00:33]} a5 {[%emt 0:00:49]} 9. Qb3 {[%emt 0:00:25]} h6 {[%emt 0:01:51]} 10. c5+ {[%emt 0:05:25]} Kh7 {[%emt 0:01:52]} 11. cxd6 {[%emt 0:06:48]} exd6 {[%emt 0:00:37]} 12. Qc2 {[%emt 0:09:05]} Na6 {[%emt 0:04:54]} 13. a3 {[%emt 0:01:00]} Nc7 {[%emt 0:05:48]} 14. Nh4 {[%emt 0:07:02]} Be6 {[%emt 0:27:21]} 15. Bd2 {[%emt 0:19:12]} Ncd5 {[%emt 0:10:57]} 16. Rfe1 {[%emt 0:06:10]} Qd7 {[%emt 0:16:47]} 17. Rbc1 {[%emt 0:09:42]} Nxc3 {[%emt 0:05:05]} 18. Bxc3 {[%emt 0:05:48]} g5 {[%emt 0:01:04]} 19. Nf3 {[%emt 0:00:40]} Kg8 {[%emt 0:02:09]} 20. h4 {[%emt 0:27:08]} Ne4 {[%emt 0:18:59]} 21. hxg5 {[%emt 0:00:00]} hxg5 {[%emt 0:00:00]} 22. Nd2 {[%emt 0:00:00]} d5 {[%emt 0:00:00]} 23. Nf1 {[%emt 0:00:00]} Bf6 {[%emt 0:00:00]} 24. f3 {[%emt 0:00:00]} Nd6 {[%emt 0:00:00]} 25. Nd2 {[%emt 0:00:00]} Kg7 {[%emt 0:00:00]} 26. Rcd1 {[%emt 0:00:00]} f4 {[%emt 0:00:00]} 27. g4 {[%emt 0:00:00]} Bf7 {[%emt 0:00:00]} 28. e4 {[%emt 0:04:00]} fxe3 {[%emt 0:00:00]} 29. Nf1 {[%emt 0:00:00]} Bg6 {[%emt 0:00:00]} 30. Qc1 {[%emt 0:00:00]} a4 {[%emt 0:00:00]} 31. Nxe3 {[%emt 0:00:00]} Rfe8 {[%emt 0:00:00]} 32. Bf1 {[%emt 0:00:00]} Qf7 {[%emt 0:02:09]} 33. Bd3 {[%emt 0:00:00]} Bxd3 {[%emt 0:00:41]} 34. Rxd3 {[%emt 0:00:00]} Qg6 {[%emt 0:01:34]} 35. Rdd1 {[%emt 0:00:00]} Kf7 {[%emt 0:01:00]} 36. Bb4 {[%emt 0:00:00]} Nb5 {[%emt 0:01:45]} 37. Nf5 {[%emt 0:00:00]} Rxe1+ {[%emt 0:00:20]} 38. Bxe1 {[%emt 0:00:00]} Rh8 {[%emt 0:00:37]} 39. Qc2 {[%emt 0:02:34]} Qh7 {[%emt 0:00:14]} 40. Qg2 {[%emt 0:00:45]} Qh3 {[%emt 0:00:56]} 41. Bf2 {[%emt 0:03:10]} Qxg2+ {[%emt 0:02:05]} 42. Kxg2 {[%emt 0:00:01]} Re8 {[%emt 0:05:04]} 43. Rd2 {[%emt 0:05:07]} Ke6 {[%emt 0:11:04]} 44. Bg3 {[%emt 0:02:57]} Kd7 {[%emt 0:00:40]} 45. Kf1 {[%emt 0:00:25]} Rh8 {[%emt 0:05:57]} 46. Kg2 {[%emt 0:06:39]} Re8 {[%emt 0:01:04]} 47. Kf1 {[%emt 0:02:35]} Rh8 {[%emt 0:00:05]} 48. Kg2 {[%emt 0:00:05]} Re8 {[%emt 0:01:11]} 1/2-1/2

[Event "26th OIBM 2023"]
[Site "Gmund am Tegernsee"]
[Date "2023.10.29"]
[Round "2.40"]
[White "Singer, Christoph"]
[Black "Engel, Johannes"]
[Result "1/2-1/2"]
[ECO "C02"]
[WhiteElo "2303"]
[BlackElo "2101"]
[Annotator "ChessBase"]
[PlyCount "71"]
[EventDate "2023.10.04"]
[EventType "swiss"]
[EventCountry "GER"]
[SourceTitle "playchess.com"]
[Source "ChessBase"]
[SourceQuality "1"]
[TimeControl "40/5400+30:1800+30"]

1. e4 {[%emt 0:20:16]} e6 {[%emt 0:00:16]} 2. d4 {[%emt 0:00:08]} d5 {[%emt 0:00:07]} 3. e5 {[%emt 0:00:04]} c5 {[%emt 0:00:06]} 4. c3 {[%emt 0:00:02]} Nc6 {[%emt 0:00:10]} 5. Nf3 {[%emt 0:00:06]} Bd7 {[%emt 0:00:13]} 6. Bd3 {[%emt 0:00:04]} Qb6 {[%emt 0:00:08]} 7. dxc5 {[%emt 0:00:20]} Bxc5 {[%emt 0:00:30]} 8. O-O {[%emt 0:00:06]} a5 {[%emt 0:04:39]} 9. Nbd2 {[%emt 0:01:22]} f5 {[%emt 0:14:53]} 10. Nb3 {[%emt 0:02:20]} Bf8 {[%emt 0:02:13]} 11. Re1 {[%emt 0:13:19]} Qc7 {[%emt 0:01:50]} 12. Nbd4 {[%emt 0:01:40]} Nxd4 {[%emt 0:00:39]} 13. Nxd4 {[%emt 0:03:17]} Bc5 {[%emt 0:01:28]} 14. Qh5+ {[%emt 0:12:45]} g6 {[%emt 0:02:15]} 15. Qh4 {[%emt 0:00:10]} Qb6 {[%emt 0:10:35]} 16. Nb3 {[%emt 0:03:18]} Be7 {[%emt 0:01:45]} 17. Qg3 {[%emt 0:02:43]} Qc7 {[%emt 0:01:42]} 18. Nd4 {[%emt 0:02:41]} Kf7 {[%emt 0:03:51]} 19. Bf4 {[%emt 0:13:17]} Qd8 {[%emt 0:02:35]} 20. Bd2 {[%emt 0:03:03]} Rc8 {[%emt 0:01:54]} 21. Rac1 {[%emt 0:00:46]} Qb6 {[%emt 0:01:12]} 22. Rb1 {[%emt 0:01:46]} h5 {[%emt 0:01:31]} 23. h4 {[%emt 0:01:42]} Qd8 {[%emt 0:00:17]} 24. Nf3 {[%emt 0:00:22]} Nh6 {[%emt 0:01:14]} 25. Ng5+ {[%emt 0:01:54]} Kg7 {[%emt 0:03:52]} 26. Re2 {[%emt 0:01:15]} Nf7 {[%emt 0:00:45]} 27. Nf3 {[%emt 0:00:28]} Kh7 {[%emt 0:02:44]} 28. Rbe1 {[%emt 0:00:58]} Qb6 {[%emt 0:00:41]} 29. Be3 {[%emt 0:00:16]} Qc7 {[%emt 0:01:16]} 30. Bf4 {[%emt 0:01:16]} Rhg8 {[%emt 0:01:11]} 31. Ng5+ {[%emt 0:01:39]} Nxg5 {[%emt 0:00:23]} 32. Bxg5 {[%emt 0:00:55]} Qd8 {[%emt 0:02:35]} 33. Qf4 {[%emt 0:00:34]} Bxg5 {[%emt 0:00:14]} 34. hxg5 {[%emt 0:00:01]} Qb6 {[%emt 0:01:01]} 35. Qd4 {[%emt 0:03:14]} Qc5 {[%emt 0:01:40]} 36. Qxc5 {[%emt 0:02:13]} 1/2-1/2

[Event "26th OIBM 2023"]
[Site "Gmund am Tegernsee"]
[Date "2023.10.29"]
[Round "2.41"]
[White "Schott, Guido"]
[Black "Solomon, Kenny"]
[Result "0-1"]
[ECO "A20"]
[WhiteElo "2016"]
[BlackElo "2300"]
[Annotator "ChessBase"]
[PlyCount "70"]
[EventDate "2023.10.04"]
[EventType "swiss"]
[EventCountry "GER"]
[SourceTitle "playchess.com"]
[Source "ChessBase"]
[SourceQuality "1"]
[TimeControl "40/5400+30:1800+30"]

1. c4 {[%emt 0:00:08]} e5 {[%emt 0:00:23]} 2. g3 {[%emt 0:00:23]} Nf6 {[%emt 0:00:06]} 3. Bg2 {[%emt 0:00:27]} c6 {[%emt 0:00:07]} 4. d4 {[%emt 0:02:15]} e4 {[%emt 0:00:07]} 5. d5 {[%emt 0:04:55]} Bb4+ {[%emt 0:00:12]} 6. Bd2 {[%emt 0:02:14]} Qe7 {[%emt 0:00:06]} 7. Qb3 {[%emt 0:07:55]} Na6 {[%emt 0:19:01]} 8. Nh3 {[%emt 0:05:39]} h6 {[%emt 0:13:51]} 9. O-O {[%emt 0:04:51]} O-O {[%emt 0:04:01]} 10. Nc3 {[%emt 0:02:27]} Re8 {[%emt 0:01:00]} 11. a3 {[%emt 0:02:41]} Bxc3 {[%emt 0:03:53]} 12. Bxc3 {[%emt 0:02:25]} cxd5 {[%emt 0:00:22]} 13. cxd5 {[%emt 0:09:20]} d6 {[%emt 0:00:08]} 14. Rac1 {[%emt 0:14:54]} Nc5 {[%emt 0:04:27]} 15. Qa2 {[%emt 0:05:27]} a5 {[%emt 0:02:14]} 16. b4 {[%emt 0:02:23]} axb4 {[%emt 0:01:07]} 17. Bxb4 {[%emt 0:00:06]} Bf5 {[%emt 0:06:47]} 18. Rfd1 {[%emt 0:06:19]} Qd7 {[%emt 0:01:09]} 19. Nf4 {[%emt 0:02:40]} Na4 {[%emt 0:11:21]} 20. e3 {[%emt 0:06:04]} Ng4 {[%emt 0:08:45]} 21. Rd2 {[%emt 0:02:59]} Ne5 {[%emt 0:04:42]} 22. Rdc2 {[%emt 0:00:25]} Rac8 {[%emt 0:01:07]} 23. Rxc8 {[%emt 0:00:31]} Rxc8 {[%emt 0:00:03]} 24. Rxc8+ {[%emt 0:02:33]} Qxc8 {[%emt 0:00:02]} 25. Ne2 {[%emt 0:03:03]} Nf3+ {[%emt 0:07:10]} 26. Kh1 {[%emt 0:01:12]} Qc7 {[%emt 0:09:07]} 27. Qb3 {[%emt 0:02:02]} Nc5 {[%emt 0:01:26]} 28. Bxc5 {[%emt 0:02:26]} Qxc5 {[%emt 0:00:01]} 29. Nc3 {[%emt 0:01:51]} g5 {[%emt 0:01:19]} 30. Qb4 {[%emt 0:00:51]} Qc8 {[%emt 0:00:12]} 31. Bxf3 {[%emt 0:01:45]} exf3 {[%emt 0:00:01]} 32. e4 {[%emt 0:02:10]} Bg6 {[%emt 0:01:23]} 33. Nd1 {[%emt 0:00:50]} Qc1 {[%emt 0:00:04]} 34. Qd4 {[%emt 0:00:45]} Bxe4 {[%emt 0:00:11]} 35. h4 {[%emt 0:00:19]} Bc2 {[%emt 0:00:15]} 0-1

[Event "26th OIBM 2023"]
[Site "Gmund am Tegernsee"]
[Date "2023.10.29"]
[Round "2.42"]
[White "Hiemer, Bernd"]
[Black "Dubessay, Bastien"]
[Result "1-0"]
[ECO "B25"]
[WhiteElo "1999"]
[BlackElo "2286"]
[Annotator "ChessBase"]
[PlyCount "97"]
[EventDate "2023.10.04"]
[EventType "swiss"]
[EventCountry "GER"]
[SourceTitle "playchess.com"]
[Source "ChessBase"]
[SourceQuality "1"]
[TimeControl "40/5400+30:1800+30"]

1. e4 {[%emt 0:00:02]} c5 {[%emt 0:00:11]} 2. Nc3 {[%emt 0:00:09]} Nc6 {[%emt 0:00:22]} 3. g3 {[%emt 0:00:09]} g6 {[%emt 0:00:05]} 4. Bg2 {[%emt 0:00:03]} Bg7 {[%emt 0:00:06]} 5. d3 {[%emt 0:00:06]} d6 {[%emt 0:00:39]} 6. Be3 {[%emt 0:00:22]} Rb8 {[%emt 0:00:30]} 7. f4 {[%emt 0:07:23]} e6 {[%emt 0:00:54]} 8. Nf3 {[%emt 0:02:04]} Nge7 {[%emt 0:00:13]} 9. O-O {[%emt 0:00:26]} O-O {[%emt 0:00:10]} 10. Qd2 {[%emt 0:00:18]} Nd4 {[%emt 0:08:23]} 11. g4 {[%emt 0:11:28]} f5 {[%emt 0:00:57]} 12. gxf5 {[%emt 0:00:06]} gxf5 {[%emt 0:00:59]} 13. Rae1 {[%emt 0:07:23]} b6 {[%emt 0:06:12]} 14. Bxd4 {[%emt 0:09:48]} cxd4 {[%emt 0:02:45]} 15. Nb5 {[%emt 0:00:47]} fxe4 {[%emt 0:20:38]} 16. dxe4 {[%emt 0:15:39]} e5 {[%emt 0:04:41]} 17. Qb4 {[%emt 0:10:34]} Ng6 {[%emt 0:09:32]} 18. f5 {[%emt 0:03:22]} Nf4 {[%emt 0:00:43]} 19. Nxd6 {[%emt 0:00:09]} Qe7 {[%emt 0:04:40]} 20. Qb3+ {[%emt 0:00:20]} Kh8 {[%emt 0:00:11]} 21. Nxc8 {[%emt 0:01:36]} Rbxc8 {[%emt 0:00:06]} 22. Rf2 {[%emt 0:00:57]} Bf6 {[%emt 0:01:05]} 23. Kh1 {[%emt 0:05:15]} d3 {[%emt 0:10:29]} 24. cxd3 {[%emt 0:00:08]} Bh4 {[%emt 0:00:18]} 25. Nxh4 {[%emt 0:01:05]} Qxh4 {[%emt 0:00:07]} 26. Ref1 {[%emt 0:00:02]} Rc1 {[%emt 0:01:43]} 27. Rxc1 {[%emt 0:13:02]} Qxf2 {[%emt 0:00:21]} 28. Rg1 {[%emt 0:00:01]} Qd4 {[%emt 0:14:26]} 29. Bf1 {[%emt 0:03:44]} a5 {[%emt 0:01:21]} 30. Qc3 {[%emt 0:00:55]} Qd6 {[%emt 0:01:02]} 31. Rg4 {[%emt 0:01:18]} Qf6 {[%emt 0:01:40]} 32. d4 {[%emt 0:02:47]} exd4 {[%emt 0:00:53]} 33. Qc7 {[%emt 0:00:18]} Ng6 {[%emt 0:00:10]} 34. Bd3 {[%emt 0:01:49]} Ne5 {[%emt 0:10:58]} 35. Rg3 {[%emt 0:00:13]} h5 {[%emt 0:00:00]} 36. Bc4 {[%emt 0:00:50]} h4 {[%emt 0:00:00]} 37. Rg1 {[%emt 0:00:49]} d3 {[%emt 0:00:00]} 38. h3 {[%emt 0:01:41]} Rd8 {[%emt 0:00:00]} 39. Bd5 {[%emt 0:00:32]} a4 {[%emt 0:00:00]} 40. Qc1 {[%emt 0:00:39]} Rd7 {[%emt 0:01:20]} 41. Qd1 {[%emt 0:17:58]} Qh6 {[%emt 0:02:22]} 42. f6 {[%emt 0:04:53]} d2 {[%emt 0:01:29]} 43. Rg2 {[%emt 0:01:17]} Rc7 {[%emt 0:02:42]} 44. Rxd2 {[%emt 0:03:51]} Nd3 {[%emt 0:01:16]} 45. f7 {[%emt 0:02:27]} Rc1 {[%emt 0:00:33]} 46. Qxc1 {[%emt 0:00:49]} Nxc1 {[%emt 0:00:06]} 47. Rg2 {[%emt 0:01:54]} Kh7 {[%emt 0:00:46]} 48. Rg8 {[%emt 0:00:37]} Ne2 {[%emt 0:00:36]} 49. f8=N+ {[%emt 0:00:09]} 1-0